bitfinex/quotes_ETHUSD_20240716
["timestamp","ask_amount","ask_price","bid_price","bid_amount"]
[1721121068563,2.95212,3387.4,3386.4,2.95298]
[1721121068750,2.9522,3387.3,3386.4,2.95298]
[1721121068951,2.9522,3387.3,3386.4,4.091833]
[1721121069170,2.95195,3387.6,3386.7,2.95266]
[1721121069675,7.067515,3387.9,3386.7,2.95266]
[1721121069676,2.95188,3387.7,3386.8,2.95261]
[1721121069881,2.95188,3387.7,3386.9,2.312]
[1721121071089,2.95194,3387.6,3386.9,2.312]
[1721121071303,2.95194,3387.6,3386.7,3.077]
[1721121071488,2.95194,3387.6,3386.7,6.02966]
[1721121071660,2.95194,3387.6,3386.7,7.2731703]
[1721121072892,2.95194,3387.6,3386.8,2.95263]
[1721121073556,2.95194,3387.6,3386.7,7.2732203]
[1721121075390,2.95194,3387.6,3386.8,2.95263]
[1721121075899,3.87388316,3388.2,3386.9,2.95254]
[1721121075900,2.95168,3387.9,3386.9,2.95254]
[1721121076102,2.95168,3387.9,3387.0,1.02256803]
[1721121076312,2.95176,3387.8,3387.0,3.97501803]
[1721121077410,2.95176,3387.8,3386.7,3.077]
[1721121077411,2.95177,3387.8,3386.7,3.077]
[1721121077560,2.95203,3387.5,3386.7,6.0297]
[1721121077901,2.95203,3387.5,3386.7,2.9527]
[1721121078220,2.95203,3387.5,3386.7,3.774637]
[1721121078517,2.95212,3387.4,3386.5,5.26659]
[1721121079316,2.95194,3387.6,3386.5,2.3137]
[1721121079524,2.95194,3387.6,3386.7,2.95272]
[1721121080209,2.95194,3387.6,3386.7,6.02972]
[1721121080410,2.95178,3387.8,3386.8,2.95257]
[1721121080590,2.95178,3387.8,3386.8,4.082169]
[1721121081525,2.95178,3387.8,3386.9,2.95254]
[1721121081732,2.95159,3388.0,3386.8,1.129599]
[1721121081733,2.95166,3388.0,3387.0,2.95245]
[1721121082041,3.87407316,3388.0,3387.1,2.3881]
[1721121082388,0.92241316,3387.9,3387.1,2.3881]
[1721121083134,0.92241316,3387.9,3387.1,3.0351149]
[1721121083318,0.92241316,3388.1,3387.1,3.0351149]
[1721121083500,2.9521,3387.5,3386.4,2.4606]
[1721121083688,2.95234,3387.2,3386.4,2.4606]
[1721121084457,2.95238,3387.1,3386.4,2.4606]
[1721121084727,3.87496316,3387.0,3386.4,2.4606]
[1721121084903,3.87498316,3386.9,3386.4,2.4606]
[1721121085425,0.92241316,3386.8,3386.4,2.4606]
[1721121085926,0.92241316,3386.7,3386.4,2.4606]
[1721121087294,0.92241316,3386.8,3386.4,2.4606]
[1721121087684,0.92241316,3386.7,3386.4,2.4606]
[1721121087889,0.92241316,3386.7,3385.7,5.31508]
[1721121088085,0.92241316,3386.7,3385.7,2.3615]
[1721121088086,0.92851276,3386.3,3385.7,2.3615]
[1721121088320,0.92851276,3386.4,3385.7,3.941898]
[1721121088551,0.92851276,3386.9,3386.5,2.9529]
[1721121088689,0.92851276,3387.2,3386.8,3.077]
[1721121088896,7.99602776,3387.3,3386.7,2.95264]
[1721121089126,0.92851276,3387.2,3386.7,2.95264]
[1721121089428,0.92851276,3387.1,3386.7,2.95264]
[1721121089601,0.92851276,3387.1,3386.8,3.496304]
[1721121089813,0.92851276,3387.2,3386.9,2.95251]
[1721121090613,0.92851276,3387.1,3386.9,2.95251]
[1721121090819,0.92851276,3387.1,3386.8,0.543684]
[1721121091003,0.92851276,3387.1,3386.6,2.4842]
[1721121091004,0.92851276,3387.0,3386.6,2.4842]
[1721121091207,0.92851276,3386.8,3386.6,2.4842]
[1721121091407,1.23801702,3387.0,3386.2,2.4361]
[1721121091408,0.92851276,3386.7,3386.2,2.4361]
[1721121091610,7.067515,3387.3,3385.9,2.9534]
[1721121091611,0.92851276,3386.4,3385.9,2.9534]
[1721121091810,0.92851276,3386.4,3385.8,5.3896]
[1721121091811,0.92851276,3386.3,3385.8,5.3896]
[1721121092027,0.92851276,3386.0,3385.8,5.3896]
[1721121092190,0.92851276,3386.1,3385.8,2.4361]
[1721121092395,0.92851276,3385.9,3385.8,2.4361]
[1721121092703,0.92851276,3385.9,3385.6,2.95364]
[1721121092889,0.92851276,3385.8,3385.4,2.4554]
[1721121093830,1.23801702,3385.9,3385.4,2.4554]
[1721121093831,0.92851276,3385.7,3385.4,2.4554]
[1721121094007,2.9531,3386.3,3385.4,2.4554]
[1721121094200,0.92857975,3385.8,3385.4,2.4554]
[1721121094593,0.92857975,3385.7,3385.4,2.4554]
[1721121095298,0.92857975,3385.8,3385.4,2.4554]
[1721121095518,0.92857975,3385.7,3385.4,2.4554]
[1721121095832,0.92857975,3385.8,3385.4,2.4554]
[1721121096330,0.92857975,3385.9,3385.4,3.291744]
[1721121096627,0.92857975,3386.0,3385.4,6.245584]
[1721121097458,1.23810634,3386.2,3385.6,2.9536]
[1721121097459,0.92857975,3386.2,3385.6,2.9536]
[1721121097946,0.92857975,3386.1,3385.6,2.9536]
[1721121098512,0.92857975,3386.0,3385.4,2.4554]
[1721121098725,0.92857975,3386.0,3385.4,5.40925]
[1721121099115,0.92857975,3385.9,3385.4,5.40925]
[1721121099316,0.92857975,3386.0,3385.4,5.40925]
[1721121099635,1.23810634,3386.1,3385.4,5.40925]
[1721121099636,0.92857975,3385.9,3385.4,5.40925]
[1721121100237,0.92857975,3386.0,3385.4,5.40925]
[1721121100437,0.92857975,3385.9,3385.4,5.40925]
[1721121101024,0.9270508,3385.9,3385.4,5.40925]
[1721121101230,0.9270508,3386.0,3385.4,5.40925]
[1721121101428,0.9270508,3385.9,3385.4,5.40925]
[1721121101641,0.9270508,3386.0,3385.4,5.40925]
[1721121102540,0.9270508,3385.9,3385.4,5.40925]
[1721121102746,0.9270508,3386.0,3385.4,5.40925]
[1721121102915,0.9270508,3386.1,3385.7,2.95353]
[1721121103118,0.9270508,3386.3,3385.8,2.95349]
[1721121103746,2.95264,3386.8,3385.8,2.95349]
[1721121103949,0.92687744,3386.2,3385.8,2.95349]
[1721121104173,0.92687744,3386.0,3385.6,2.95366]
[1721121104330,0.92687744,3386.0,3385.4,2.4554]
[1721121104546,0.92687744,3386.0,3385.5,2.95376]
[1721121105371,0.92687744,3385.9,3385.4,5.40925]
[1721121105550,0.92687744,3385.8,3385.4,5.40925]
[1721121105732,0.92687744,3385.7,3385.4,5.40925]
[1721121105933,0.92687744,3385.8,3385.4,5.40925]
[1721121106272,4.49796574,3386.2,3385.4,5.40925]
[1721121106273,0.92687744,3385.9,3385.4,5.40925]
[1721121106865,0.92687744,3385.8,3385.4,5.40925]
[1721121107077,0.92675887,3386.1,3385.4,6.245576]
[1721121107366,0.92675887,3386.0,3385.4,6.245576]
[1721121107569,0.92675887,3385.9,3385.4,6.245576]
[1721121107881,0.92675887,3386.0,3385.4,5.40925]
[1721121108172,0.92675887,3386.1,3385.4,5.40925]
[1721121108379,0.92675887,3386.0,3385.4,5.40925]
[1721121109464,0.92675887,3385.7,3385.3,2.95393]
[1721121109676,0.92675887,3385.8,3385.3,2.95393]
[1721121109847,1.2356785,3385.9,3385.4,3.544653]
[1721121109848,0.92675887,3385.9,3385.4,3.544653]
[1721121110244,0.92692084,3385.9,3385.4,3.544653]
[1721121110450,0.92692084,3385.8,3385.2,2.95398]
[1721121110671,0.92692084,3385.7,3385.3,2.95394]
[1721121111246,0.92692084,3385.8,3385.3,2.95394]
[1721121112179,1.23589446,3385.9,3385.3,2.95394]
[1721121112180,0.92692084,3385.9,3385.3,2.95394]
[1721121112335,0.92692084,3386.0,3385.3,2.95394]
[1721121112531,0.92692084,3386.0,3385.3,0.590804]
[1721121112773,0.92692084,3386.0,3385.4,2.95386]
[1721121113357,2.95325,3386.1,3385.4,2.95386]
[1721121113555,0.92671259,3386.0,3385.4,2.95386]
[1721121115172,3.87996259,3386.1,3385.4,2.95386]
[1721121115477,0.92671259,3386.1,3385.6,2.2807]
[1721121115846,0.92671259,3386.2,3385.6,2.2807]
[1721121116242,0.92671259,3386.1,3385.6,2.2807]
[1721121116469,0.92671259,3386.1,3385.6,5.23438]
[1721121116682,0.92671259,3386.2,3385.6,6.14773104]
[1721121116887,0.92671259,3386.2,3386.1,2.95325]
[1721121117041,0.92671259,3386.2,3385.6,6.30905104]
[1721121117042,0.92671259,3386.5,3385.6,3.19405104]
[1721121117350,0.92671259,3386.3,3385.6,6.14772104]
[1721121117555,0.92671259,3386.2,3385.6,5.23437]
[1721121118281,0.92671259,3386.2,3385.7,2.95359]
[1721121119563,0.92671259,3386.3,3385.8,2.95343]
[1721121120160,3.87979259,3386.3,3385.6,2.2807]
[1721121120469,0.92671259,3386.1,3385.6,2.2807]
[1721121120661,2.95317,3386.2,3385.2,2.3415]
[1721121120662,2.95344,3385.9,3385.2,2.3415]
[1721121120862,0.92671259,3385.7,3385.2,2.3415]
[1721121122494,0.92671259,3385.6,3385.2,2.3415]
[1721121123458,0.92671259,3385.6,3384.9,2.95428]
[1721121123665,0.92671259,3385.4,3384.9,2.95428]
[1721121123865,0.92671259,3385.4,3384.9,4.095154]
[1721121124081,0.92671259,3385.5,3385.0,2.95419]
[1721121124277,0.92671259,3385.8,3385.6,2.95366]
[1721121124631,1.5455316,3386.1,3385.5,2.95376]
[1721121124632,0.92671259,3386.0,3385.5,2.95376]
[1721121124902,0.92671259,3386.1,3385.7,2.95358]
[1721121125293,7.067515,3386.6,3385.9,2.95341]
[1721121125607,0.92738142,3386.3,3386.0,2.4858]
[1721121125812,0.92738142,3386.4,3386.0,2.4858]
[1721121126164,1.23650856,3386.5,3386.0,2.4858]
[1721121126165,0.92738142,3386.3,3386.0,2.4858]
[1721121126365,0.92738142,3386.3,3386.0,3.632779]
[1721121127288,1.23650856,3386.4,3386.0,3.632779]
[1721121127289,0.92738142,3386.2,3386.0,3.632779]
[1721121127488,0.92738142,3386.2,3386.0,2.4858]
[1721121127713,1.23650856,3386.1,3386.0,2.4858]
[1721121128016,1.23650856,3386.1,3385.7,2.3417]
[1721121128181,2.95291,3386.5,3385.7,2.3417]
[1721121128182,0.92798007,3385.9,3385.7,2.3417]
[1721121128584,0.92829899,3385.9,3385.7,2.3417]
[1721121128811,0.92829899,3385.9,3385.2,2.3417]
[1721121128812,1.23773199,3385.9,3385.2,2.3417]
[1721121129016,0.92833168,3385.7,3385.6,2.95368]
[1721121129180,0.92833168,3386.0,3385.7,5.29526]
[1721121130003,0.92833168,3385.9,3385.7,5.29526]
[1721121130407,1.23773199,3386.1,3385.8,2.9535]
[1721121130408,0.92833168,3386.1,3385.8,2.9535]
[1721121130684,0.92833168,3386.2,3385.9,2.95335]
[1721121130891,0.92833168,3386.3,3386.0,0.824855]
[1721121131304,0.92833168,3386.2,3386.0,0.824855]
[1721121131494,0.92833168,3386.3,3386.0,0.824855]
[1721121131693,0.92833168,3386.2,3385.7,5.29526]
[1721121131922,0.92833168,3386.0,3385.7,5.29526]
[1721121132221,0.92833168,3386.0,3385.7,2.3417]
[1721121132381,1.23773199,3386.1,3385.3,5.26197]
[1721121132382,1.23773199,3385.9,3385.3,5.26197]
[1721121132583,0.92897129,3385.7,3385.3,5.26197]
[1721121132913,0.92897129,3385.7,3385.4,4.20779864]
[1721121134293,0.92897129,3385.7,3385.3,2.3081]
[1721121134294,0.92897129,3385.7,3385.3,5.26204]
[1721121135218,0.92897129,3385.7,3385.3,2.3081]
[1721121135416,0.92897129,3385.7,3384.9,2.4082]
[1721121135607,0.92897129,3385.7,3384.9,5.36249]
[1721121135608,2.95361,3385.7,3384.9,5.36249]
[1721121135794,2.95361,3385.7,3384.9,6.501885]
[1721121136324,2.95361,3385.7,3384.9,5.36249]
[1721121136526,2.95361,3385.7,3384.9,2.4082]
[1721121136913,2.95361,3385.7,3384.9,5.36249]
[1721121137294,4.19126199,3385.8,3384.9,5.36249]
[1721121138031,2.95333,3386.0,3384.9,2.4082]
[1721121138344,2.95342,3385.9,3385.0,3.79816]
[1721121138534,2.95355,3385.8,3385.0,3.79816]
[1721121138921,2.95361,3385.7,3384.9,2.4082]
[1721121139231,2.95369,3385.6,3384.9,2.4082]
[1721121139425,2.93869,3385.6,3384.9,2.4082]
[1721121140509,0.93025842,3385.0,3384.9,2.4082]
[1721121140864,1.24034457,3385.1,3384.9,2.4082]
[1721121141431,0.93005925,3385.0,3384.9,2.4082]
[1721121142237,1.24034457,3385.1,3384.9,2.4082]
[1721121142422,0.92995318,3385.0,3384.9,2.4082]
[1721121143500,1.24034457,3385.1,3384.9,2.4082]
[1721121144210,0.92982347,3385.0,3384.9,2.4082]
[1721121144395,1.24034457,3385.1,3384.9,2.4082]
[1721121144596,0.92973776,3385.0,3384.9,2.4082]
[1721121145435,0.92973776,3385.2,3384.9,5.36248]
[1721121145598,0.92973776,3385.2,3384.9,6.194182]
[1721121146433,0.92973776,3385.2,3385.1,2.95412]
[1721121146618,0.92973776,3385.4,3385.2,2.95403]
[1721121146821,1.24034457,3385.5,3385.2,2.95403]
[1721121146822,0.92956381,3385.3,3385.2,2.95403]
[1721121147020,0.92956381,3385.4,3385.3,0.59082]
[1721121147221,0.92956381,3385.4,3385.2,2.95403]
[1721121147623,0.92956381,3385.4,3385.3,2.95394]
[1721121147826,0.92953813,3385.4,3385.3,2.95394]
[1721121148522,0.92953813,3385.5,3385.4,2.95386]
[1721121150807,0.92953813,3385.5,3385.2,2.95401]
[1721121151136,1.85904657,3385.5,3384.4,2.4528]
[1721121151339,0.92971087,3384.9,3384.4,2.4528]
[1721121151517,1.23961449,3385.0,3384.6,2.95449]
[1721121151518,0.92971087,3384.8,3384.6,2.95449]
[1721121152102,0.92971087,3384.7,3384.6,2.95449]
[1721121152546,1.23961449,3384.8,3384.4,2.4528]
[1721121152731,0.92947942,3384.6,3384.4,2.4528]
[1721121152911,1.23961449,3384.6,3384.1,2.95494]
[1721121153106,0.92954661,3384.4,3384.1,2.95494]
[1721121153311,0.92954661,3384.4,3384.2,2.95488]
[1721121153704,0.92954661,3384.6,3384.2,2.95488]
[1721121154037,0.92954661,3384.5,3384.2,2.95488]
[1721121154341,0.92954661,3384.5,3384.1,2.95498]
[1721121154739,0.92954661,3384.4,3384.1,2.95498]
[1721121154905,0.92954661,3384.4,3384.0,2.284]
[1721121154906,0.92954661,3384.4,3384.2,2.95489]
[1721121155105,0.92954661,3384.5,3384.2,2.95489]
[1721121155311,0.92954661,3384.4,3384.0,5.23907]
[1721121155510,0.92954661,3384.4,3384.1,2.95498]
[1721121155751,0.92954661,3384.5,3384.1,4.1846547]
[1721121156050,0.92954661,3384.6,3384.2,2.9549]
[1721121156712,0.92954661,3384.5,3384.2,2.9549]
[1721121157052,0.92954661,3384.4,3384.0,5.23905]
[1721121157213,0.92954661,3384.3,3384.0,5.23905]
[1721121157849,0.92954661,3384.3,3384.0,2.284]
[1721121158656,0.92954661,3384.3,3383.8,2.95522]
[1721121159539,0.92954661,3384.3,3383.5,5.35131]
[1721121159743,1.23961449,3384.5,3383.5,5.35131]
[1721121159744,0.92954661,3384.2,3383.6,2.95535]
[1721121160060,1.23961449,3384.4,3383.6,2.95535]
[1721121160061,0.92954661,3384.3,3383.6,2.95535]
[1721121160349,0.92954661,3384.2,3383.6,2.95535]
[1721121161045,0.92954661,3384.2,3383.7,2.95534]
[1721121161226,0.92954661,3384.3,3383.7,2.95534]
[1721121162428,0.92954661,3384.4,3383.7,2.95534]
[1721121163261,0.92954661,3384.4,3383.8,2.95525]
[1721121163462,1.23961449,3384.5,3383.8,2.95525]
[1721121163463,0.92954661,3384.6,3383.9,2.95514]
[1721121163752,0.92954661,3384.7,3383.9,2.95514]
[1721121164360,0.92954661,3384.7,3383.8,6.862906]
[1721121164361,0.92954661,3384.7,3384.0,2.95507]
[1721121164514,3.88392661,3384.8,3384.0,2.95507]
[1721121165460,0.92954661,3384.7,3384.0,2.95507]
[1721121166359,3.88392661,3384.8,3384.0,2.95507]
[1721121166566,0.92954661,3384.6,3384.0,2.95507]
[1721121166750,0.92954661,3384.5,3384.0,2.95507]
[1721121167187,0.92954661,3384.6,3384.0,2.95507]
[1721121167600,3.88401661,3384.7,3384.0,2.95507]
[1721121167793,0.92954661,3384.7,3384.0,2.95507]
[1721121168152,0.92954661,3384.6,3384.0,2.95507]
[1721121168358,1.23961449,3384.8,3384.0,2.95507]
[1721121168359,0.92954661,3384.7,3384.0,2.95507]
[1721121169400,0.92954661,3384.7,3384.1,2.95499]
[1721121169618,0.92954661,3384.7,3383.7,2.95532]
[1721121169619,3.88412661,3384.6,3383.7,2.95532]
[1721121169771,0.92954661,3384.5,3383.7,2.95532]
[1721121169965,0.92954661,3384.4,3383.7,2.95532]
[1721121170689,0.92954661,3384.5,3383.7,2.95532]
[1721121170887,0.92954661,3384.4,3383.7,2.95532]
[1721121171091,0.92614508,3384.4,3383.7,2.95532]
[1721121171606,4.1894401,3384.6,3383.7,2.95532]
[1721121171607,0.92614508,3384.3,3383.7,2.95532]
[1721121172274,1.2348601,3384.5,3383.5,5.35131]
[1721121172275,0.92614508,3384.2,3383.5,5.35131]
[1721121172870,0.92614508,3384.2,3383.6,2.9554]
[1721121174203,0.92614508,3384.2,3383.5,2.3958]
[1721121175472,3.88104508,3384.3,3383.5,2.3958]
[1721121175674,0.92614508,3384.4,3383.5,2.3958]
[1721121175999,3.88085508,3384.5,3383.5,3.23864]
[1721121176406,0.92614508,3384.4,3383.7,2.95533]
[1721121177139,0.92614508,3384.4,3383.7,6.03233]
[1721121177302,0.92614508,3384.6,3384.0,2.95507]
[1721121177489,0.92614508,3384.5,3384.0,2.95507]
[1721121179011,0.92614508,3384.4,3384.0,2.95507]
[1721121179211,1.2348601,3384.6,3384.0,2.95507]
[1721121179212,0.92614508,3384.5,3384.0,2.95507]
[1721121180317,0.92614508,3384.5,3384.0,2.351]
[1721121180482,0.92614508,3384.5,3384.0,3.189316]
[1721121180686,0.92614508,3384.7,3384.2,2.9549]
[1721121180947,0.92614508,3384.7,3384.4,3.077]
[1721121181162,0.92614508,3385.0,3384.6,2.95455]
[1721121181340,8.61307914,3385.3,3384.5,2.2668]
[1721121181341,0.92614508,3385.1,3384.7,2.95444]
[1721121181649,0.92614508,3385.0,3384.7,2.95444]
[1721121182006,0.92614508,3385.1,3384.7,2.95444]
[1721121182839,7.067515,3385.3,3384.7,2.95444]
[1721121183020,0.92727386,3385.0,3384.7,2.95444]
[1721121183222,0.92727386,3384.9,3384.5,5.22143]
[1721121183419,0.92727386,3384.9,3384.6,2.95454]
[1721121183658,0.92727386,3384.8,3384.5,2.2668]
[1721121183811,0.92727386,3384.8,3384.2,2.95489]
[1721121183812,0.92727386,3384.6,3384.0,2.4299]
[1721121184011,1.23636514,3384.7,3384.0,2.4299]
[1721121184012,0.92748295,3384.5,3384.0,2.4299]
[1721121184446,0.92748295,3384.3,3383.8,2.95519]
[1721121185334,1.23636514,3384.5,3383.8,2.95519]
[1721121185335,0.92748295,3384.4,3383.8,2.95519]
[1721121186312,0.92748295,3384.3,3383.8,2.95519]
[1721121187611,0.92748295,3384.3,3383.6,8.40471]
[1721121187612,0.92748295,3384.4,3383.9,2.95516]
[1721121188122,0.92748295,3384.6,3384.1,2.4354]
[1721121188337,0.92748295,3384.6,3384.2,2.95484]
[1721121188508,0.92748295,3384.7,3384.2,2.95484]
[1721121188712,0.92748295,3384.7,3384.4,2.9547]
[1721121188964,0.92748295,3384.9,3384.5,2.95463]
[1721121189256,0.92768012,3384.8,3384.5,2.95463]
[1721121191399,0.92768012,3384.8,3384.5,0.590943]
[1721121191543,0.92768012,3384.9,3384.7,5.35517]
[1721121191884,0.92768012,3385.0,3384.7,5.35517]
[1721121192095,0.92768012,3385.0,3384.7,6.5529423]
[1721121192450,0.92768012,3384.9,3384.7,5.35517]
[1721121192699,0.92768012,3384.8,3384.7,5.35517]
[1721121193249,0.92768012,3384.9,3384.7,5.35517]
[1721121193585,0.92768012,3384.8,3384.7,5.35517]
[1721121194153,1.23690682,3384.9,3384.4,3.077]
[1721121194390,1.5468537,3385.0,3384.4,3.077]
[1721121194391,0.92841089,3384.7,3384.4,2.95472]
[1721121194561,0.92841089,3384.5,3384.4,2.95472]
[1721121194778,0.92841089,3384.6,3384.4,2.95472]
[1721121194961,0.92841089,3384.5,3384.3,2.95481]
[1721121195170,0.92841089,3384.4,3384.3,2.95481]
[1721121195374,1.23690682,3384.5,3384.3,2.95481]
[1721121195958,0.92916364,3384.4,3384.3,2.95481]
[1721121196158,0.92914788,3384.4,3384.3,2.95481]
[1721121196382,1.5485798,3384.7,3384.3,2.95481]
[1721121196383,1.23886384,3384.5,3384.3,2.95481]
[1721121196793,0.92962785,3384.4,3384.3,2.95481]
[1721121196964,0.92962785,3384.4,3384.3,4.097458]
[1721121197316,1.5485798,3384.8,3384.4,2.95473]
[1721121197317,0.92962785,3384.5,3384.4,2.95473]
[1721121197459,0.92962785,3384.6,3384.5,2.95464]
[1721121197799,1.23886384,3384.7,3384.6,2.95455]
[1721121197800,0.92962785,3384.7,3384.6,2.95455]
[1721121198164,0.92962785,3384.7,3384.6,5.9091]
[1721121198503,0.92962785,3384.7,3384.6,9.1958748]
[1721121198909,7.067515,3385.1,3384.9,2.95428]
[1721121199055,8.61686459,3385.1,3384.9,2.95428]
[1721121199254,8.61675787,3385.1,3384.9,2.95428]
[1721121201181,0.9293275,3385.1,3385.0,2.9542]
[1721121201502,0.9293275,3385.1,3385.0,3.852754]
[1721121201702,0.92918211,3385.2,3385.1,2.95412]
[1721121201879,1.23910333,3385.3,3385.1,2.95412]
[1721121201880,0.92918211,3385.3,3385.1,2.95412]
[1721121202779,0.92918211,3385.2,3385.1,2.95412]
[1721121203104,1.23910333,3385.4,3385.2,2.95403]
[1721121203300,1.23910333,3385.4,3385.3,2.95394]
[1721121203301,0.92875046,3385.4,3385.3,2.95394]
[1721121203659,0.92875046,3385.5,3385.3,2.95394]
[1721121204071,0.92875046,3385.5,3385.3,5.30104]
[1721121204276,0.92875046,3385.6,3385.5,2.95377]
[1721121204475,1.23910333,3385.7,3385.6,2.95368]
[1721121205305,1.23910333,3385.8,3385.6,2.95368]
[1721121206178,1.23910333,3385.8,3385.4,2.95386]
[1721121206382,0.92796797,3385.6,3385.4,2.95386]
[1721121206586,0.92796797,3385.5,3385.3,2.3471]
[1721121206808,1.5469315,3385.8,3385.0,2.9542]
[1721121206809,0.92796797,3385.4,3385.0,2.9542]
[1721121206991,0.92796797,3385.3,3385.1,2.95411]
[1721121207299,0.92796797,3385.4,3384.8,5.3495]
[1721121207507,0.92796797,3385.3,3384.9,2.95423]
[1721121207674,0.92796797,3385.2,3384.9,2.95423]
[1721121207871,1.23910333,3385.4,3384.8,2.2725]
[1721121207872,0.92796797,3385.3,3385.0,2.9542]
[1721121208072,0.92796797,3385.4,3385.0,2.9542]
[1721121208274,0.92796797,3385.3,3385.0,2.9542]
[1721121208476,2.95369,3385.6,3384.8,2.2725]
[1721121208685,0.92794659,3385.1,3384.8,5.22687]
[1721121208880,0.92794659,3385.1,3384.8,2.95437]
[1721121209071,0.9280381,3385.1,3384.8,2.95437]
[1721121209272,0.9280381,3385.2,3384.8,2.95437]
[1721121210047,0.9280381,3385.1,3384.8,2.95437]
[1721121210326,0.9280381,3385.2,3384.8,2.95437]
[1721121210907,0.9280381,3385.2,3384.9,2.95428]
[1721121211313,0.9280381,3385.3,3385.0,2.9542]
[1721121211635,0.9280381,3385.4,3385.3,2.95394]
[1721121212021,1.23738414,3385.5,3385.3,2.95394]
[1721121212196,0.92783395,3385.4,3385.3,2.95394]
[1721121212397,0.92783395,3385.5,3385.3,2.95394]
[1721121212596,1.23738414,3385.7,3385.3,2.95394]
[1721121212597,0.92783395,3385.6,3385.3,2.95394]
[1721121212896,0.92783395,3385.4,3385.1,2.9541]
[1721121213431,0.92783395,3385.3,3385.2,2.95397]
[1721121213795,0.92783395,3385.4,3385.2,2.95397]
[1721121214017,0.92783395,3385.5,3385.3,2.95394]
[1721121214217,8.61387509,3385.8,3385.4,0.603094]
[1721121214218,0.92783395,3385.7,3385.4,0.603094]
[1721121214635,7.99534895,3385.8,3385.4,0.603094]
[1721121214795,7.99534895,3385.8,3385.6,2.95368]
[1721121214996,0.92783395,3385.8,3385.6,2.95368]
[1721121215247,1.54592218,3386.1,3385.6,2.95368]
[1721121215248,0.92783395,3386.1,3386.0,2.95333]
[1721121215500,1.23738414,3386.2,3386.1,2.95325]
[1721121215501,0.92783395,3386.2,3386.1,2.95325]
[1721121215746,0.92783395,3386.3,3386.1,2.95325]
[1721121215945,0.92783395,3386.4,3386.1,2.95325]
[1721121216100,0.92783395,3386.4,3385.9,2.95342]
[1721121216602,0.92783395,3386.4,3386.3,2.95307]
[1721121216800,1.23738414,3386.5,3386.3,2.95307]
[1721121216801,0.92783395,3386.7,3386.5,2.9529]
[1721121217001,0.92783395,3386.8,3386.5,2.9529]
[1721121217196,0.92783395,3386.9,3386.5,3.01195422]
[1721121217398,0.92783395,3386.9,3385.9,3.718042]
[1721121217399,7.99534895,3387.2,3386.8,6.02963]
[1721121217704,0.92783395,3387.2,3386.8,6.02963]
[1721121218132,0.92783395,3387.3,3386.8,6.02963]
[1721121218327,0.92783395,3387.2,3386.8,6.02963]
[1721121218723,0.92783395,3387.3,3386.8,6.02963]
[1721121218900,0.92783395,3387.2,3386.8,6.02963]
[1721121219106,0.92783395,3387.4,3386.8,6.02963]
[1721121219500,0.92783395,3387.3,3386.8,6.02963]
[1721121220103,0.92783395,3387.5,3386.8,6.02963]
[1721121220446,0.92783395,3387.4,3386.8,6.02963]
[1721121220826,0.92783395,3387.5,3386.9,2.95247]
[1721121221174,0.92783395,3387.6,3386.9,2.95247]
[1721121221345,9.72006078,3387.8,3386.9,2.95247]
[1721121221546,2.65254578,3387.8,3386.9,2.95247]
[1721121221750,2.65254578,3387.8,3387.1,2.95235]
[1721121222231,1.72723931,3387.8,3387.1,2.95235]
[1721121222436,0.92530647,3387.9,3387.4,2.95207]
[1721121222639,0.92530647,3388.1,3387.4,2.95207]
[1721121223153,0.92530647,3388.2,3387.4,2.95207]
[1721121224238,0.92530647,3388.3,3387.4,2.95207]
[1721121224445,0.92530647,3388.3,3387.7,2.95184]
[1721121224646,0.92530647,3388.4,3387.7,2.95184]
[1721121225052,1.23374196,3388.5,3387.7,2.95184]
[1721121225053,0.92530647,3388.3,3387.7,2.95184]
[1721121225246,0.92530647,3388.4,3387.7,2.95184]
[1721121225461,3.87656647,3388.4,3387.4,2.95207]
[1721121225645,0.92530647,3388.3,3387.5,5.90398]
[1721121225832,0.92530647,3388.5,3387.5,3.850058]
[1721121226041,2.95115,3388.5,3387.6,2.95194]
[1721121226350,2.95115,3388.5,3387.6,2.95193]
[1721121226557,2.95124,3388.4,3387.4,2.95207]
[1721121227147,2.4156,3388.3,3387.4,2.95207]
[1721121227469,2.4156,3388.3,3387.3,2.95219]
[1721121227470,2.4156,3388.2,3387.2,3.077]
[1721121227766,2.95152,3388.1,3387.2,3.077]
[1721121228127,2.95152,3388.1,3387.2,6.02926]
[1721121228866,2.95152,3388.1,3387.3,2.95216]
[1721121229020,2.4156,3388.2,3387.3,3.850302]
[1721121230430,5.36703,3388.2,3387.3,3.850302]
[1721121231061,2.4156,3388.2,3387.5,2.95201]
[1721121231226,2.4156,3388.2,3387.4,2.95209]
[1721121233299,2.95125,3388.4,3387.5,3.9399692]
[1721121233595,2.4791,3388.6,3387.5,2.95202]
[1721121233596,2.95133,3388.3,3387.5,2.95202]
[1721121234078,2.95115,3388.5,3387.5,2.95202]
[1721121234391,2.95115,3388.5,3387.6,2.95193]
[1721121234588,2.95126,3388.4,3387.6,2.95193]
[1721121234754,2.95126,3388.4,3387.4,2.95206]
[1721121235087,2.95126,3388.4,3387.5,2.95202]
[1721121236388,5.43017,3388.6,3387.6,2.95193]
[1721121236389,2.95116,3388.5,3387.6,2.95193]
[1721121237164,0.12118773,3388.7,3388.0,6.02859]
[1721121237366,0.12118773,3388.7,3388.3,2.95132]
[1721121237577,0.12118773,3388.7,3388.0,6.02859]
[1721121237784,0.12118773,3388.7,3388.2,2.95135]
[1721121238778,0.12118773,3388.7,3388.2,3.849344]
[1721121239176,0.12118773,3388.7,3388.5,2.95108]
[1721121239377,0.12118773,3388.7,3388.5,2.95115]
[1721121239681,0.12118773,3388.7,3388.4,2.95123]
[1721121240368,0.12118773,3388.7,3388.2,0.897994]
[1721121240570,0.12118773,3388.7,3388.0,6.02858]
[1721121240571,0.12118773,3388.7,3388.1,2.95148]
[1721121241387,0.12118773,3388.7,3387.8,5.366]
[1721121241686,0.12118773,3388.7,3388.0,2.95158]
[1721121244955,0.12118773,3388.7,3388.2,0.295149]
[1721121245178,0.12118773,3388.7,3387.9,2.95166]
[1721121245384,2.49408773,3388.7,3387.8,5.366]